{"text_format":"3","workbook":"xlsx","n_sheets":2,"sheets":["คลังอุปกรณ์","การตั้งค่า"],"not_rendered":{"defined_names":4},"read":"whole","date_system":"1900"}

{"sheet":"คลังอุปกรณ์","index":0,"n_rows":35,"n_cols":6,"rows_kept":35,"merged":[[0,1,2,2],[0,4,0,5]]}
["s"]
[{"$nulls":4},"เน้นอุปกรณ์ที่มีอายุเกิน:"]
[{"$nulls":4},1]
[]
[null,"รหัสอุปกรณ์","ชื่ออุปกรณ์","ผู้รับมอบ","วันที่ส่งมอบ","อายุของอุปกรณ์"]
[null,"ITEM0001","เก้าอี้","พนักงาน 1",{"$f":"TODAY()-25","v":"2012-12-10"},{"$f":"IF(tblEquipmentInventory[[#This Row],[วันที่ส่งมอบ]]<>\"\",TODAY()-tblEquipmentInventory[[#This Row],[วันที่ส่งมอบ]],\"\")","v":{"v":25,"d":"25 วัน"}}]
[null,"ITEM0002","เครื่องพิมพ์เลเซอร์","พนักงาน 2",{"$f":"TODAY()-479","v":"2011-09-13"},{"$f":"IF(tblEquipmentInventory[[#This Row],[วันที่ส่งมอบ]]<>\"\",TODAY()-tblEquipmentInventory[[#This Row],[วันที่ส่งมอบ]],\"\")","v":{"v":479,"d":"479 วัน"}}]
[null,"ITEM0003","สแกนเนอร์","พนักงาน 3",{"$f":"TODAY()-177","v":"2012-07-11"},{"$f":"IF(tblEquipmentInventory[[#This Row],[วันที่ส่งมอบ]]<>\"\",TODAY()-tblEquipmentInventory[[#This Row],[วันที่ส่งมอบ]],\"\")","v":{"v":177,"d":"177 วัน"}}]
[null,"ITEM0004","เครื่องพิมพ์เลเซอร์","พนักงาน 7",{"$f":"TODAY()-18","v":"2012-12-17"},{"$f":"IF(tblEquipmentInventory[[#This Row],[วันที่ส่งมอบ]]<>\"\",TODAY()-tblEquipmentInventory[[#This Row],[วันที่ส่งมอบ]],\"\")","v":{"v":18,"d":"18 วัน"}}]
[null,"ITEM0005","เครื่องชงกาแฟ","พนักงาน 20",{"$f":"TODAY()-227","v":"2012-05-22"},{"$f":"IF(tblEquipmentInventory[[#This Row],[วันที่ส่งมอบ]]<>\"\",TODAY()-tblEquipmentInventory[[#This Row],[วันที่ส่งมอบ]],\"\")","v":{"v":227,"d":"227 วัน"}}]
[null,"ITEM0006","สแกนเนอร์","พนักงาน 14",{"$f":"TODAY()-50","v":"2012-11-15"},{"$f":"IF(tblEquipmentInventory[[#This Row],[วันที่ส่งมอบ]]<>\"\",TODAY()-tblEquipmentInventory[[#This Row],[วันที่ส่งมอบ]],\"\")","v":{"v":50,"d":"50 วัน"}}]
[null,"ITEM0007","โต๊ะ","พนักงาน 4",{"$f":"TODAY()-120","v":"2012-09-06"},{"$f":"IF(tblEquipmentInventory[[#This Row],[วันที่ส่งมอบ]]<>\"\",TODAY()-tblEquipmentInventory[[#This Row],[วันที่ส่งมอบ]],\"\")","v":{"v":120,"d":"120 วัน"}}]
[null,"ITEM0008","เครื่องถ่ายเอกสาร","พนักงาน 12",{"$f":"TODAY()-499","v":"2011-08-24"},{"$f":"IF(tblEquipmentInventory[[#This Row],[วันที่ส่งมอบ]]<>\"\",TODAY()-tblEquipmentInventory[[#This Row],[วันที่ส่งมอบ]],\"\")","v":{"v":499,"d":"499 วัน"}}]
[null,"ITEM0009","จอภาพพิเศษ","พนักงาน 8",{"$f":"TODAY()-30","v":"2012-12-05"},{"$f":"IF(tblEquipmentInventory[[#This Row],[วันที่ส่งมอบ]]<>\"\",TODAY()-tblEquipmentInventory[[#This Row],[วันที่ส่งมอบ]],\"\")","v":{"v":30,"d":"30 วัน"}}]
[null,"ITEM0010","กระดานไวท์บอร์ด","พนักงาน 19",{"$f":"TODAY()-50","v":"2012-11-15"},{"$f":"IF(tblEquipmentInventory[[#This Row],[วันที่ส่งมอบ]]<>\"\",TODAY()-tblEquipmentInventory[[#This Row],[วันที่ส่งมอบ]],\"\")","v":{"v":50,"d":"50 วัน"}}]
[null,"ITEM0011","เครื่องถ่ายเอกสาร","พนักงาน 12",{"$f":"TODAY()-450","v":"2011-10-12"},{"$f":"IF(tblEquipmentInventory[[#This Row],[วันที่ส่งมอบ]]<>\"\",TODAY()-tblEquipmentInventory[[#This Row],[วันที่ส่งมอบ]],\"\")","v":{"v":450,"d":"450 วัน"}}]
[null,"ITEM0012","เครื่องเขียน","พนักงาน 18",{"$f":"TODAY()-420","v":"2011-11-11"},{"$f":"IF(tblEquipmentInventory[[#This Row],[วันที่ส่งมอบ]]<>\"\",TODAY()-tblEquipmentInventory[[#This Row],[วันที่ส่งมอบ]],\"\")","v":{"v":420,"d":"420 วัน"}}]
[null,"ITEM0013","จอภาพพิเศษ","พนักงาน 8",{"$f":"TODAY()-250","v":"2012-04-29"},{"$f":"IF(tblEquipmentInventory[[#This Row],[วันที่ส่งมอบ]]<>\"\",TODAY()-tblEquipmentInventory[[#This Row],[วันที่ส่งมอบ]],\"\")","v":{"v":250,"d":"250 วัน"}}]
[null,"ITEM0014","เครื่องชงกาแฟ","พนักงาน 9",{"$f":"TODAY()-45","v":"2012-11-20"},{"$f":"IF(tblEquipmentInventory[[#This Row],[วันที่ส่งมอบ]]<>\"\",TODAY()-tblEquipmentInventory[[#This Row],[วันที่ส่งมอบ]],\"\")","v":{"v":45,"d":"45 วัน"}}]
[null,"ITEM0015","เครื่องเขียน","พนักงาน 13",{"$f":"TODAY()-502","v":"2011-08-21"},{"$f":"IF(tblEquipmentInventory[[#This Row],[วันที่ส่งมอบ]]<>\"\",TODAY()-tblEquipmentInventory[[#This Row],[วันที่ส่งมอบ]],\"\")","v":{"v":502,"d":"502 วัน"}}]
[null,"ITEM0016","สแกนเนอร์","พนักงาน 1",{"$f":"TODAY()-350","v":"2012-01-20"},{"$f":"IF(tblEquipmentInventory[[#This Row],[วันที่ส่งมอบ]]<>\"\",TODAY()-tblEquipmentInventory[[#This Row],[วันที่ส่งมอบ]],\"\")","v":{"v":350,"d":"350 วัน"}}]
[null,"ITEM0017","เครื่องถ่ายเอกสาร","พนักงาน 19",{"$f":"TODAY()-125","v":"2012-09-01"},{"$f":"IF(tblEquipmentInventory[[#This Row],[วันที่ส่งมอบ]]<>\"\",TODAY()-tblEquipmentInventory[[#This Row],[วันที่ส่งมอบ]],\"\")","v":{"v":125,"d":"125 วัน"}}]
[null,"ITEM0018","กระดานไวท์บอร์ด","พนักงาน 15",{"$f":"TODAY()-90","v":"2012-10-06"},{"$f":"IF(tblEquipmentInventory[[#This Row],[วันที่ส่งมอบ]]<>\"\",TODAY()-tblEquipmentInventory[[#This Row],[วันที่ส่งมอบ]],\"\")","v":{"v":90,"d":"90 วัน"}}]
[null,"ITEM0019","เก้าอี้","พนักงาน 16",{"$f":"TODAY()-730","v":"2011-01-05"},{"$f":"IF(tblEquipmentInventory[[#This Row],[วันที่ส่งมอบ]]<>\"\",TODAY()-tblEquipmentInventory[[#This Row],[วันที่ส่งมอบ]],\"\")","v":{"v":730,"d":"730 วัน"}}]
[null,"ITEM0020","ผ้าทำความสะอาด (1 ชุด)","พนักงาน 3",{"$f":"TODAY()-540","v":"2011-07-14"},{"$f":"IF(tblEquipmentInventory[[#This Row],[วันที่ส่งมอบ]]<>\"\",TODAY()-tblEquipmentInventory[[#This Row],[วันที่ส่งมอบ]],\"\")","v":{"v":540,"d":"540 วัน"}}]
[null,"ITEM0021","เครื่องพิมพ์เลเซอร์","พนักงาน 7",{"$f":"TODAY()-18","v":"2012-12-17"},{"$f":"IF(tblEquipmentInventory[[#This Row],[วันที่ส่งมอบ]]<>\"\",TODAY()-tblEquipmentInventory[[#This Row],[วันที่ส่งมอบ]],\"\")","v":{"v":18,"d":"18 วัน"}}]
[null,"ITEM0022","คอมพิวเตอร์แล็ปท็อป","พนักงาน 8",{"$f":"TODAY()-283","v":"2012-03-27"},{"$f":"IF(tblEquipmentInventory[[#This Row],[วันที่ส่งมอบ]]<>\"\",TODAY()-tblEquipmentInventory[[#This Row],[วันที่ส่งมอบ]],\"\")","v":{"v":283,"d":"283 วัน"}}]
[null,"ITEM0023","เครื่องเขียน","พนักงาน 9",{"$f":"TODAY()-479","v":"2011-09-13"},{"$f":"IF(tblEquipmentInventory[[#This Row],[วันที่ส่งมอบ]]<>\"\",TODAY()-tblEquipmentInventory[[#This Row],[วันที่ส่งมอบ]],\"\")","v":{"v":479,"d":"479 วัน"}}]
[null,"ITEM0024","เครื่องพิมพ์เลเซอร์","พนักงาน 19",{"$f":"TODAY()-355","v":"2012-01-15"},{"$f":"IF(tblEquipmentInventory[[#This Row],[วันที่ส่งมอบ]]<>\"\",TODAY()-tblEquipmentInventory[[#This Row],[วันที่ส่งมอบ]],\"\")","v":{"v":355,"d":"355 วัน"}}]
[null,"ITEM0025","โต๊ะ","พนักงาน 7",{"$f":"TODAY()-28","v":"2012-12-07"},{"$f":"IF(tblEquipmentInventory[[#This Row],[วันที่ส่งมอบ]]<>\"\",TODAY()-tblEquipmentInventory[[#This Row],[วันที่ส่งมอบ]],\"\")","v":{"v":28,"d":"28 วัน"}}]
[null,"ITEM0026","กระดานไวท์บอร์ด","พนักงาน 8",{"$f":"TODAY()-28","v":"2012-12-07"},{"$f":"IF(tblEquipmentInventory[[#This Row],[วันที่ส่งมอบ]]<>\"\",TODAY()-tblEquipmentInventory[[#This Row],[วันที่ส่งมอบ]],\"\")","v":{"v":28,"d":"28 วัน"}}]
[null,"ITEM0027","คอมพิวเตอร์แล็ปท็อป","พนักงาน 19",{"$f":"TODAY()-736","v":"2010-12-30"},{"$f":"IF(tblEquipmentInventory[[#This Row],[วันที่ส่งมอบ]]<>\"\",TODAY()-tblEquipmentInventory[[#This Row],[วันที่ส่งมอบ]],\"\")","v":{"v":736,"d":"736 วัน"}}]
[null,"ITEM0028","โต๊ะ","พนักงาน 12",{"$f":"TODAY()-68","v":"2012-10-28"},{"$f":"IF(tblEquipmentInventory[[#This Row],[วันที่ส่งมอบ]]<>\"\",TODAY()-tblEquipmentInventory[[#This Row],[วันที่ส่งมอบ]],\"\")","v":{"v":68,"d":"68 วัน"}}]
[null,"ITEM0029","สแกนเนอร์","พนักงาน 14",{"$f":"TODAY()-67","v":"2012-10-29"},{"$f":"IF(tblEquipmentInventory[[#This Row],[วันที่ส่งมอบ]]<>\"\",TODAY()-tblEquipmentInventory[[#This Row],[วันที่ส่งมอบ]],\"\")","v":{"v":67,"d":"67 วัน"}}]
[null,"ITEM0030","เครื่องชงกาแฟ","พนักงาน 3",{"$f":"TODAY()-149","v":"2012-08-08"},{"$f":"IF(tblEquipmentInventory[[#This Row],[วันที่ส่งมอบ]]<>\"\",TODAY()-tblEquipmentInventory[[#This Row],[วันที่ส่งมอบ]],\"\")","v":{"v":149,"d":"149 วัน"}}]

{"sheet":"การตั้งค่า","index":1,"n_rows":23,"n_cols":4,"rows_kept":23}
[]
[]
[null,"พนักงาน",null,"อุปกรณ์"]
[null,"พนักงาน 1",null,"เก้าอี้"]
[null,"พนักงาน 2",null,"เครื่องชงกาแฟ"]
[null,"พนักงาน 3",null,"เครื่องถ่ายเอกสาร"]
[null,"พนักงาน 4",null,"คอมพิวเตอร์เดสก์ท็อป"]
[null,"พนักงาน 5",null,"ผ้าทำความสะอาด (1 ชุด)"]
[null,"พนักงาน 6",null,"จอภาพพิเศษ"]
[null,"พนักงาน 7",null,"เครื่องพิมพ์อิงค์เจ็ต"]
[null,"พนักงาน 8",null,"คอมพิวเตอร์แล็ปท็อป"]
[null,"พนักงาน 9",null,"เครื่องพิมพ์เลเซอร์"]
[null,"พนักงาน 10",null,"ปากกามาร์กเกอร์ (3 แพค)"]
[null,"พนักงาน 11",null,"สแกนเนอร์"]
[null,"พนักงาน 12",null,"เครื่องเขียน"]
[null,"พนักงาน 13",null,"โต๊ะ"]
[null,"พนักงาน 14",null,"ไดรฟ์ USB"]
[null,"พนักงาน 15",null,"กระดานไวท์บอร์ด"]
[null,"พนักงาน 16"]
[null,"พนักงาน 17"]
[null,"พนักงาน 18"]
[null,"พนักงาน 19"]
[null,"พนักงาน 20"]